bitfinex/quotes_BTCUSD_20250526
["timestamp","ask_amount","ask_price","bid_price","bid_amount"]
[1748241786548,0.24550336,109370.0,109360.0,0.77042504]
[1748241786760,0.24550336,109370.0,109360.0,0.78935587]
[1748241787572,0.0119178,109370.0,109360.0,0.78935587]
[1748241787981,0.004,109370.0,109360.0,0.78935587]
[1748241788543,0.004,109370.0,109360.0,1.85862787]
[1748241788778,0.004,109370.0,109360.0,1.85859487]
[1748241789212,0.002,109370.0,109360.0,1.85859487]
[1748241789404,0.002,109370.0,109360.0,1.84489387]
[1748241789644,0.2995305,109380.0,109360.0,1.84489387]
[1748241789645,0.0098905,109380.0,109370.0,0.0347]
[1748241789854,0.0098905,109380.0,109370.0,0.7713106]
[1748241790065,0.14604,109390.0,109380.0,0.0347]
[1748241790265,0.1558698,109390.0,109380.0,0.76902504]
[1748241790465,0.0098298,109390.0,109380.0,0.76902504]
[1748241790886,4.97e-05,109390.0,109380.0,0.76902504]
[1748241791089,0.45964685,109400.0,109390.0,0.0172]
[1748241791264,0.54919241,109400.0,109390.0,0.38436252]
[1748241791483,0.39759241,109400.0,109390.0,0.38436252]
[1748241792339,0.293466,109400.0,109390.0,0.40236252]
[1748241792545,0.147466,109400.0,109390.0,0.40236252]
[1748241793331,0.150466,109400.0,109390.0,0.40236252]
[1748241793532,0.152466,109400.0,109390.0,0.40236252]
[1748241793735,0.149466,109400.0,109390.0,0.40236252]
[1748241794069,0.151466,109400.0,109390.0,0.40236252]
[1748241798388,0.151466,109400.0,109390.0,0.38436252]
[1748241798610,0.0179,109390.0,109370.0,0.40096252]
[1748241798821,0.08954556,109380.0,109370.0,0.36716252]
[1748241799035,0.23859526,109380.0,109360.0,0.05338053]
[1748241799273,0.23859526,109380.0,109360.0,0.38501222]
[1748241799274,0.25579526,109380.0,109360.0,0.38501222]
[1748241799480,0.26559886,109380.0,109360.0,0.38501222]
[1748241799658,0.24839886,109380.0,109360.0,0.38501222]
[1748241799897,0.24839886,109380.0,109370.0,0.001]
[1748241800433,0.24839886,109380.0,109360.0,0.38501222]
[1748241800639,0.24839886,109380.0,109370.0,0.36716252]
[1748241800858,0.26293971,109380.0,109370.0,0.36816252]
[1748241801958,0.26293971,109380.0,109370.0,0.001]
[1748241803020,0.26293971,109380.0,109370.0,0.002]
[1748241804443,0.28083971,109380.0,109370.0,0.002]
[1748241805156,0.28083971,109380.0,109370.0,0.001]
[1748241805512,0.01454085,109370.0,109360.0,0.36704343]
[1748241805723,0.10408641,109370.0,109360.0,0.36704343]
[1748241806669,0.09054556,109370.0,109360.0,0.36704343]
[1748241808060,0.09154556,109370.0,109360.0,0.38504343]
[1748241808657,0.09154556,109370.0,109360.0,0.36704343]
[1748241809657,0.09154556,109370.0,109360.0,4.97e-05]
[1748241809829,0.10834556,109370.0,109360.0,4.97e-05]
[1748241810188,0.23754556,109370.0,109360.0,4.97e-05]
[1748241810698,0.23754556,109370.0,109360.0,0.36704343]
[1748241810897,0.09154556,109370.0,109360.0,0.36704343]
[1748241811285,0.09154556,109370.0,109360.0,4.97e-05]
[1748241811466,0.09154556,109370.0,109360.0,0.36704343]
[1748241812925,0.12308641,109370.0,109360.0,0.36704343]
[1748241813138,0.14018641,109370.0,109360.0,4.97e-05]
[1748241814411,0.11708641,109370.0,109360.0,4.97e-05]
[1748241815132,0.23154556,109370.0,109360.0,0.38444343]
[1748241815511,0.08554556,109370.0,109360.0,0.38444343]
[1748241816238,0.08554556,109370.0,109360.0,4.97e-05]
[1748241816442,0.10284556,109370.0,109360.0,4.97e-05]
[1748241816856,0.13438641,109370.0,109360.0,4.97e-05]
[1748241818441,0.15326059,109370.0,109360.0,4.97e-05]
[1748241819713,0.13438641,109370.0,109360.0,4.97e-05]
[1748241821283,0.28038641,109370.0,109360.0,4.97e-05]
[1748241821884,0.79890014,109370.0,109360.0,4.97e-05]
[1748241822086,0.43190641,109370.0,109360.0,4.97e-05]
[1748241822449,0.45098331,109370.0,109360.0,4.97e-05]
[1748241822684,0.0175,109350.0,109330.0,0.36699373]
[1748241822913,0.12524556,109350.0,109330.0,0.36749101]
[1748241823907,0.13518716,109350.0,109330.0,0.36749101]
[1748241824634,0.13518716,109350.0,109330.0,0.37149101]
[1748241825121,0.28118716,109350.0,109330.0,0.37149101]
[1748241825360,0.26368716,109350.0,109330.0,0.37149101]
[1748241825613,0.28028716,109350.0,109330.0,0.37549101]
[1748241826290,0.28028716,109350.0,109330.0,0.36749101]
[1748241826468,0.28028716,109350.0,109330.0,0.36849101]
[1748241826718,0.1376,109340.0,109330.0,0.38759101]
[1748241827676,0.1376,109340.0,109330.0,0.38659101]
[1748241827888,0.1376,109340.0,109330.0,0.38759101]
[1748241828091,0.1376,109340.0,109330.0,0.38659101]
[1748241828312,0.1376,109340.0,109330.0,0.38759101]
[1748241828608,0.1376,109340.0,109330.0,0.36949101]
[1748241829025,0.1316,109340.0,109330.0,0.36949101]
[1748241829189,0.1316,109340.0,109330.0,0.38619101]
[1748241829394,0.1316,109340.0,109330.0,0.40379101]
[1748241836291,0.1316,109340.0,109330.0,0.03679728]
[1748241836473,0.1316,109340.0,109330.0,0.40379101]
[1748241836886,0.1256,109340.0,109330.0,0.40379101]
[1748241837413,0.1256,109340.0,109330.0,0.03679728]
[1748241837639,0.1256,109340.0,109330.0,0.01919728]
[1748241838189,0.1256,109340.0,109330.0,0.38619101]
[1748241843534,0.1256,109340.0,109330.0,0.01919728]
[1748241843716,0.1256,109340.0,109330.0,0.38619101]
[1748241844413,0.1196,109340.0,109330.0,0.38619101]
[1748241846020,0.1196,109340.0,109330.0,0.40359101]
[1748241847244,0.1196,109340.0,109330.0,1.28303501]
[1748241849056,0.1196,109340.0,109330.0,1.37258057]
[1748241849674,0.1196,109340.0,109330.0,1.05019657]
[1748241849879,0.1196,109340.0,109330.0,0.94912957]
[1748241850081,0.1196,109340.0,109330.0,0.58213584]
[1748241850293,0.1196,109340.0,109330.0,0.71304257]
[1748241850694,0.1196,109340.0,109330.0,0.40359101]
[1748241851721,0.1196,109340.0,109330.0,0.54226301]
[1748241852135,0.1136,109340.0,109330.0,0.54226301]
[1748241860014,0.1076,109340.0,109330.0,0.54226301]
[1748241863404,0.1076,109340.0,109330.0,0.38619101]
[1748241867477,0.1016,109340.0,109330.0,0.38619101]
[1748241868865,0.1016,109340.0,109330.0,0.1261992]
[1748241871769,0.1016,109340.0,109330.0,0.2639192]
[1748241875373,0.0956,109340.0,109330.0,0.2639192]
[1748241876017,0.0956,109340.0,109330.0,0.5048479]
[1748241881155,0.0956,109340.0,109330.0,0.5394479]
[1748241881783,0.0956,109340.0,109330.0,0.5222479]
[1748241882625,0.0956,109340.0,109330.0,0.5401479]
[1748241883006,0.0896,109340.0,109330.0,0.9072758]
[1748241883421,0.0896,109340.0,109330.0,0.5401479]
[1748241886825,0.0896,109340.0,109330.0,0.9072758]
[1748241888468,0.0896,109340.0,109330.0,0.99682136]
[1748241888631,0.0098495,109350.0,109330.0,0.99682136]
[1748241888837,0.0777,109360.0,109340.0,0.7342558]
[1748241889036,0.0777,109360.0,109350.0,0.3671279]
[1748241889215,0.0876049,109360.0,109350.0,0.3671279]
[1748241890608,0.0886049,109360.0,109350.0,0.3671279]
[1748241890815,0.0816049,109360.0,109350.0,0.3671279]
[1748241891140,0.0836049,109360.0,109350.0,0.3671279]
[1748241891344,0.0866049,109360.0,109350.0,0.3671279]
[1748241898248,0.0565049,109360.0,109350.0,0.3671279]
[1748241898654,0.0406,109360.0,109350.0,1.3971659]
[1748241898867,0.0406,109360.0,109350.0,0.9983729]
[1748241899453,0.0386,109360.0,109350.0,0.9983729]
[1748241899825,0.0356,109360.0,109350.0,0.9983729]
[1748241900013,0.0356,109360.0,109350.0,1.01602072]
[1748241900215,0.0366,109360.0,109350.0,0.99139172]
[1748241900626,0.0366,109360.0,109350.0,1.35836744]
[1748241901007,0.0376,109360.0,109350.0,1.37596744]
[1748241903393,0.0376,109360.0,109350.0,1.465513]
[1748241903635,0.002,109360.0,109350.0,1.465513]
[1748241904283,0.001,109360.0,109350.0,1.465513]
[1748241905345,0.0756697,109380.0,109350.0,1.465513]
[1748241905552,0.0756697,109380.0,109370.0,0.36697572]
[1748241905980,0.0756697,109380.0,109370.0,0.36691077]
[1748241906152,0.0696697,109380.0,109370.0,0.36691077]
[1748241906357,0.0696697,109380.0,109370.0,0.38399442]
[1748241906764,0.07116695,109380.0,109370.0,0.38399442]
[1748241907201,0.07216695,109380.0,109370.0,0.38399442]
[1748241913908,0.06616695,109380.0,109370.0,0.38399442]
[1748241918911,0.04206695,109380.0,109370.0,0.38399442]
[1748241919135,0.05986695,109380.0,109370.0,0.38399442]
[1748241919363,0.04989725,109380.0,109370.0,0.38399442]
[1748241919623,0.03209725,109380.0,109370.0,0.40089442]
[1748241919885,0.03209725,109380.0,109370.0,2.01565642]
[1748241920127,0.03209725,109380.0,109370.0,2.08811833]
[1748241920732,0.03109725,109380.0,109370.0,2.08811833]
[1748241921338,0.03109725,109380.0,109370.0,1.78650133]
[1748241921544,0.03009725,109380.0,109370.0,2.1534121]
[1748241921753,0.02409725,109380.0,109370.0,2.1534121]
[1748241924120,0.00049725,109380.0,109370.0,2.1534121]
[1748241925483,0.00017512,109380.0,109370.0,2.1534121]
[1748241927295,0.00017512,109380.0,109370.0,1.41959056]
[1748241927505,0.00017512,109380.0,109370.0,2.1534121]
[1748241928107,0.00017512,109380.0,109370.0,2.30426076]
[1748241928697,0.01177512,109400.0,109370.0,2.26976076]
[1748241928871,0.01186604,109400.0,109390.0,0.3667151]
[1748241929945,0.01386604,109400.0,109390.0,0.3667151]
[1748241931516,0.01686604,109400.0,109390.0,0.3667151]
[1748241935722,0.01086604,109400.0,109390.0,0.3667151]
[1748241937195,0.02866604,109400.0,109380.0,0.49276066]
[1748241937406,0.04626604,109400.0,109390.0,0.3667151]
[1748241938034,0.04326604,109400.0,109390.0,0.3667151]
[1748241938392,0.04426604,109400.0,109390.0,0.3667151]
[1748241938807,0.04326604,109400.0,109390.0,0.3667151]
[1748241939194,0.04626604,109400.0,109390.0,0.3667151]
[1748241940374,0.04626604,109400.0,109380.0,0.10774556]
[1748241940582,0.04626604,109400.0,109390.0,0.3667151]
[1748241941328,0.04126604,109400.0,109390.0,0.3667151]
[1748241941665,0.04326604,109400.0,109390.0,0.3667151]
[1748241941945,0.04226604,109400.0,109390.0,0.3667151]
[1748241942174,0.04126604,109400.0,109390.0,0.3667151]
[1748241942395,0.04326604,109400.0,109390.0,0.3667151]
[1748241942536,0.04626604,109400.0,109390.0,0.3667151]
[1748241943072,0.04626604,109400.0,109380.0,0.10774556]
[1748241943297,0.017,109390.0,109370.0,0.0349]
[1748241943518,0.017,109390.0,109380.0,0.4979791]
[1748241943734,0.0339,109390.0,109380.0,0.4979791]
[1748241943958,0.02776604,109400.0,109380.0,0.4724591]
[1748241944188,0.02476604,109400.0,109390.0,0.3667151]
[1748241944414,0.02576604,109400.0,109390.0,0.3667151]
[1748241945099,0.02276604,109400.0,109390.0,0.3667151]
[1748241945309,0.02376604,109400.0,109390.0,0.3667151]
[1748241945522,0.02576604,109400.0,109390.0,0.3667151]
[1748241945741,0.02776604,109400.0,109390.0,0.3667151]
[1748241946385,0.01086604,109400.0,109390.0,0.3667151]
[1748241946868,0.02876604,109400.0,109390.0,0.3667151]
[1748241948057,0.04616604,109400.0,109370.0,0.14012918]
[1748241948272,0.04616604,109400.0,109390.0,0.3667151]
[1748241948481,0.04616604,109400.0,109380.0,0.3667151]
[1748241948686,0.04616604,109400.0,109390.0,0.3667151]
[1748241949110,0.04116604,109400.0,109390.0,0.3667151]
[1748241949925,0.04316604,109400.0,109390.0,0.3667151]
[1748241950953,0.03716604,109400.0,109390.0,0.3667151]
[1748241951124,0.04016604,109400.0,109390.0,0.3667151]
[1748241956433,0.02276604,109400.0,109390.0,0.3667151]
[1748241956633,0.005,109400.0,109390.0,0.7334302]
[1748241957201,0.005,109400.0,109390.0,0.3667151]
[1748241958009,0.1888239,109410.0,109390.0,0.3667151]
[1748241958238,0.1888239,109410.0,109400.0,0.3667151]
[1748241958441,0.0428639,109410.0,109400.0,0.3667151]
[1748241958827,0.034,109410.0,109400.0,0.3667151]
[1748241959428,0.038,109410.0,109400.0,0.3667151]
[1748241959935,0.04,109410.0,109400.0,0.3667151]
[1748241960389,0.038,109410.0,109400.0,0.3667151]
[1748241960697,0.041,109410.0,109400.0,0.3667151]
[1748241963693,0.041,109410.0,109380.0,0.40060602]
[1748241963906,0.0347,109400.0,109390.0,0.3667151]
[1748241965080,0.0287,109400.0,109390.0,0.12311281]
[1748241965682,0.0205,109410.0,109390.0,0.12311281]
[1748241965859,0.002,109400.0,109380.0,0.49095158]
[1748241966084,0.004,109400.0,109390.0,0.3667151]
[1748241966583,0.0175,109410.0,109390.0,0.3667151]
[1748241966788,0.0175,109410.0,109400.0,0.3667151]
[1748241967023,0.0215,109410.0,109400.0,0.3667151]
[1748241967223,0.0195,109410.0,109400.0,0.3667151]
[1748241967355,0.0175,109410.0,109400.0,0.3667151]
[1748241968110,0.0349,109410.0,109400.0,0.3667151]
[1748241969048,0.0379,109410.0,109400.0,0.3667151]
[1748241969226,0.0409,109410.0,109400.0,0.3667151]
[1748241971509,0.4076151,109410.0,109390.0,0.3667151]
[1748241972179,0.4115549,109410.0,109390.0,0.3667151]
[1748241972565,0.4085549,109410.0,109390.0,0.3667151]
[1748241972778,0.4075549,109410.0,109390.0,0.3667151]
[1748241973134,0.4095549,109410.0,109390.0,0.3667151]
[1748241975555,0.0428398,109410.0,109390.0,0.3667151]
[1748241975899,0.3996151,109410.0,109390.0,0.3667151]
[1748241976720,0.004,109410.0,109400.0,0.3667151]
[1748241976923,0.01391,109410.0,109400.0,0.3667151]
[1748241977272,0.0206,109410.0,109400.0,0.3667151]
[1748241977603,0.037,109410.0,109400.0,0.3667151]
[1748241978025,0.037,109410.0,109390.0,0.4007151]
[1748241978484,0.035,109410.0,109400.0,0.3667151]
[1748241978629,0.035,109410.0,109390.0,0.4007151]
[1748241978833,0.038,109410.0,109390.0,0.4007151]
[1748241979031,0.033,109410.0,109390.0,0.4007151]
[1748241979267,0.027,109410.0,109390.0,0.4007151]
[1748241979471,0.032,109410.0,109390.0,0.4007151]
[1748241979983,0.029,109410.0,109390.0,0.4007151]
[1748241980193,0.029,109410.0,109390.0,0.3667151]
[1748241980404,0.031,109410.0,109390.0,0.3667151]
[1748241981068,0.17696,109410.0,109390.0,0.3667151]
[1748241981480,0.0172,109400.0,109380.0,0.03359092]
[1748241981682,0.0172,109400.0,109390.0,0.3667151]
[1748241981832,0.26704666,109410.0,109390.0,0.3667151]
[1748241982219,0.34154666,109410.0,109390.0,0.3667151]
[1748241983368,0.0338,109400.0,109390.0,0.3667151]
[1748241985208,0.0358,109400.0,109390.0,0.3667151]
[1748241986100,0.0378,109400.0,109390.0,0.3667151]
[1748241986325,0.0318,109400.0,109390.0,0.3667151]
[1748241986683,0.0318,109400.0,109380.0,0.40030602]
[1748241987938,0.0298,109400.0,109380.0,0.40030602]
[1748241988372,0.0298,109400.0,109390.0,0.3667151]
[1748241988649,0.0278,109400.0,109390.0,0.3667151]
[1748241989952,0.0298,109400.0,109390.0,0.3667151]
[1748241990190,0.0318,109400.0,109390.0,0.3667151]
[1748241990372,0.0318,109400.0,109380.0,0.40030602]
[1748241990817,0.0213,109400.0,109390.0,0.3667151]
[1748241991046,0.004,109400.0,109390.0,0.3667151]
[1748241991335,0.004,109400.0,109390.0,0.4009151]
[1748241991546,0.002,109400.0,109390.0,0.4009151]
[1748241991806,0.24534666,109410.0,109390.0,0.4009151]
[1748241992018,0.26154666,109410.0,109400.0,0.3667151]
[1748241992195,0.27774666,109410.0,109400.0,0.3667151]
[1748241992583,0.27774666,109410.0,109390.0,0.4009151]
[1748241992781,0.002,109400.0,109390.0,0.4009151]
[1748241993399,0.27474666,109410.0,109390.0,0.4009151]
[1748241993602,0.27774666,109410.0,109390.0,0.4009151]
[1748241994729,0.27474666,109410.0,109390.0,0.4009151]
[1748241994940,0.002,109400.0,109390.0,0.4009151]
[1748241995631,0.27374666,109410.0,109390.0,0.4009151]
[1748241996048,0.002,109400.0,109390.0,0.4009151]
[1748241996818,0.004,109400.0,109390.0,0.4009151]
[1748242000374,0.26974666,109410.0,109390.0,0.4009151]
[1748242000735,0.26974666,109410.0,109400.0,0.3667151]
[1748242001097,0.63646176,109410.0,109380.0,0.03449092]
[1748242001313,0.63646176,109410.0,109390.0,0.3667151]
[1748242001535,0.26974666,109410.0,109400.0,0.3667151]
[1748242001755,0.25554666,109410.0,109400.0,0.3667151]
[1748242001977,0.23734666,109410.0,109400.0,0.3667151]
[1748242002190,0.09138666,109410.0,109400.0,0.3667151]
[1748242002390,0.23934666,109410.0,109400.0,0.3667151]
[1748242003008,0.24034666,109410.0,109400.0,0.3667151]
[1748242004533,0.24234666,109410.0,109400.0,0.3667151]
[1748242005523,0.27574666,109410.0,109390.0,0.4006151]
[1748242006508,0.27574666,109410.0,109390.0,0.3667151]
[1748242007480,0.27074666,109410.0,109390.0,0.3667151]
[1748242007665,0.26474666,109410.0,109390.0,0.3667151]
[1748242007881,0.63346176,109410.0,109390.0,0.3667151]
[1748242008569,0.26674666,109410.0,109390.0,0.4008151]
[1748242011640,0.25034666,109410.0,109390.0,0.4008151]
[1748242011856,0.23334666,109410.0,109390.0,0.4008151]
[1748242012099,0.0118411,109410.0,109400.0,0.3667151]
[1748242012315,0.1578011,109410.0,109400.0,0.3996151]
[1748242012542,0.14796,109410.0,109400.0,0.3996151]
[1748242013297,0.002,109410.0,109400.0,0.3996151]
[1748242013524,0.14696,109410.0,109400.0,0.3996151]
[1748242013908,0.14896,109410.0,109400.0,0.3996151]
[1748242014105,0.14796,109410.0,109400.0,0.3996151]
[1748242014538,0.14396,109410.0,109400.0,0.7663302]
[1748242014754,0.14396,109410.0,109400.0,0.3996151]
[1748242015830,0.14496,109410.0,109400.0,0.3996151]
[1748242016451,0.14496,109410.0,109400.0,0.21822539]
[1748242021240,0.14696,109410.0,109400.0,0.21822539]
[1748242021489,0.001,109410.0,109400.0,0.21822539]
[1748242022246,0.001,109410.0,109400.0,0.25172539]
[1748242022448,0.243922,109420.0,109400.0,0.25172539]
[1748242023450,0.4646771,109420.0,109400.0,0.25172539]
[1748242023617,0.6106371,109420.0,109400.0,0.21822539]
[1748242024203,0.06,109410.0,109400.0,0.21822539]
[1748242027772,0.0938,109410.0,109390.0,0.4000151]
[1748242028802,0.103605,109410.0,109390.0,0.4000151]
[1748242029568,0.103605,109410.0,109390.0,0.3667151]
[1748242030063,0.097605,109410.0,109390.0,0.3677151]
[1748242030664,0.097605,109410.0,109390.0,0.3687151]
[1748242032805,0.4643201,109410.0,109390.0,0.3687151]
[1748242033551,0.097605,109410.0,109390.0,0.3687151]
[1748242037557,0.4643201,109410.0,109390.0,0.3687151]
[1748242037802,0.4583201,109410.0,109390.0,0.3687151]
[1748242038123,0.4583201,109410.0,109390.0,0.002]
[1748242038347,0.4583201,109410.0,109390.0,0.3687151]
[1748242038594,0.4007151,109400.0,109390.0,0.002]
[1748242038803,0.034,109400.0,109390.0,0.002]
[1748242039588,0.034,109400.0,109380.0,0.36680602]
[1748242039819,0.034,109400.0,109390.0,0.001]
[1748242040041,0.034,109400.0,109390.0,0.002]
[1748242040556,0.034,109400.0,109390.0,0.001]
[1748242041735,0.07,109400.0,109390.0,0.001]
[1748242043310,0.07,109400.0,109390.0,0.002]
[1748242045509,0.064,109400.0,109390.0,0.002]
[1748242048887,0.0531,109400.0,109390.0,0.002]
[1748242049664,0.036,109400.0,109390.0,0.3687151]
[1748242050702,0.036,109400.0,109390.0,0.002]
[1748242051043,0.0708,109400.0,109390.0,0.002]
[1748242051587,0.4375151,109400.0,109390.0,0.002]
[1748242053211,0.4315151,109400.0,109390.0,0.002]
[1748242053584,0.4255151,109400.0,109390.0,0.002]
[1748242054594,0.4255151,109400.0,109380.0,0.18281865]
[1748242054800,0.4255151,109400.0,109380.0,0.3667151]
[1748242055219,0.5714751,109400.0,109380.0,0.3667151]
[1748242055573,0.5814385,109400.0,109380.0,0.3667151]
[1748242055774,0.5814385,109400.0,109380.0,0.3697151]
[1748242055971,0.5814385,109400.0,109380.0,0.3717151]
[1748242058347,0.5814385,109400.0,109380.0,0.4078151]
[1748242058859,0.1968234,109400.0,109380.0,0.4078151]
[1748242059065,0.1799234,109400.0,109390.0,0.3667151]
[1748242059403,0.0339634,109400.0,109390.0,0.3667151]
[1748242059833,0.024,109400.0,109390.0,0.3667151]
[1748242060444,0.024,109400.0,109390.0,0.3677151]
[1748242061010,0.018,109400.0,109390.0,0.3677151]
[1748242062098,0.018,109400.0,109390.0,0.4010151]
[1748242065351,0.1679313,109410.0,109390.0,0.4010151]
[1748242065552,0.1847313,109410.0,109390.0,0.4010151]
[1748242065701,0.5514464,109410.0,109390.0,0.4010151]
[1748242066262,0.5514464,109410.0,109390.0,0.4000151]
[1748242066618,0.5514464,109410.0,109390.0,0.4010151]
[1748242066818,0.5514464,109410.0,109390.0,0.4020151]
[1748242068782,0.5454464,109410.0,109390.0,0.4020151]
[1748242068989,0.06,109400.0,109390.0,0.4020151]
[1748242069963,0.06,109400.0,109390.0,0.4000151]
[1748242070176,0.06,109400.0,109390.0,0.4010151]
[1748242070380,0.06,109400.0,109390.0,0.4020151]
[1748242075741,0.2010189,109410.0,109390.0,0.0353]
[1748242075955,0.567734,109410.0,109390.0,0.4020151]
[1748242076131,0.5578751,109410.0,109390.0,0.4020151]
[1748242076340,0.5518751,109410.0,109390.0,0.4020151]
[1748242076573,0.5618631,109410.0,109390.0,0.4000151]
[1748242076941,0.5454631,109410.0,109390.0,0.4020151]
[1748242078256,0.5632631,109410.0,109390.0,0.3850151]
[1748242078803,0.5632631,109410.0,109390.0,0.4011151]
[1748242083062,0.5632631,109410.0,109390.0,0.20323298]
[1748242084091,0.5572631,109410.0,109390.0,0.20323298]
[1748242084306,0.5572631,109410.0,109390.0,0.18713298]
[1748242086190,0.044588,109410.0,109390.0,0.18713298]
[1748242086445,0.009988,109410.0,109400.0,0.3667151]
[1748242086650,0.4012151,109420.0,109400.0,0.3667151]
[1748242086894,0.64667316,109420.0,109390.0,0.4036151]
[1748242087344,0.64667316,109420.0,109390.0,0.4016151]
[1748242087783,0.001,109410.0,109390.0,0.4016151]
[1748242088940,0.64667316,109420.0,109390.0,0.4016151]
[1748242089169,0.5571276,109420.0,109400.0,0.00228498]
[1748242090470,0.5581276,109420.0,109390.0,0.4016151]
[1748242091333,0.5236276,109420.0,109390.0,0.22125261]
[1748242091574,0.4018151,109410.0,109390.0,0.22125261]
[1748242091796,0.3958151,109410.0,109390.0,0.22125261]
[1748242092028,0.3958151,109410.0,109390.0,0.22225261]
[1748242092147,0.40573,109410.0,109390.0,0.22225261]
[1748242092348,0.40573,109410.0,109390.0,0.22125261]
[1748242092786,0.40573,109410.0,109390.0,0.22225261]
[1748242093363,0.40573,109410.0,109390.0,0.22325261]
[1748242094149,0.40573,109410.0,109390.0,0.22425261]
[1748242094370,0.40573,109410.0,109390.0,0.24145261]
[1748242095073,0.41176185,109410.0,109390.0,0.0202]
[1748242097523,0.0450149,109410.0,109390.0,0.0202]
[1748242097675,0.39506185,109410.0,109400.0,0.00228495]
[1748242097872,0.38514695,109410.0,109400.0,0.00228495]
[1748242098186,0.40254695,109410.0,109390.0,0.0202]
[1748242098588,0.40254695,109410.0,109390.0,0.0192]
[1748242098789,0.40254695,109410.0,109390.0,0.0172]
[1748242099168,0.41337845,109410.0,109390.0,0.0172]
[1748242099470,0.40637845,109410.0,109390.0,0.0172]
[1748242099862,0.40637845,109410.0,109390.0,0.0182]
[1748242100089,0.40637845,109410.0,109390.0,0.001]
[1748242100654,0.40637845,109410.0,109390.0,0.002]
[1748242101594,0.40637845,109410.0,109390.0,0.0194]
[1748242104831,0.0396315,109410.0,109390.0,0.0194]
[1748242105032,0.0396315,109410.0,109400.0,0.00228496]
[1748242105236,0.0124,109410.0,109390.0,0.12694556]
[1748242106877,0.0304,109410.0,109390.0,0.1201237]
[1748242107306,0.018,109410.0,109390.0,0.1201237]
[1748242108038,0.018,109410.0,109390.0,0.1211237]
[1748242108275,0.018,109410.0,109390.0,0.10854556]
[1748242108829,0.38474695,109410.0,109390.0,0.10854556]
[1748242109271,0.018,109420.0,109390.0,0.10854556]
[1748242109483,0.0098594,109410.0,109390.0,0.10854556]
[1748242109939,0.0179,109410.0,109390.0,0.49226488]
[1748242110141,0.0179,109410.0,109390.0,0.49126488]
[1748242110495,0.0179,109410.0,109390.0,0.2787875]
[1748242110708,0.0362,109410.0,109390.0,0.2787875]
[1748242112650,0.0362,109410.0,109400.0,0.36900422]
[1748242112851,0.0362,109410.0,109400.0,0.36671932]
[1748242113986,0.0372,109410.0,109400.0,0.36671932]
[1748242114914,0.0312,109410.0,109400.0,0.36671932]
[1748242115114,0.0322,109410.0,109400.0,0.36671932]
[1748242121266,0.0312,109410.0,109400.0,0.36671932]
[1748242121711,0.0302,109410.0,109400.0,0.36771932]
[1748242121940,0.0357,109420.0,109400.0,0.36771932]
[1748242122206,0.0297,109420.0,109410.0,0.00228473]
[1748242122475,0.0297,109420.0,109410.0,0.36900405]
[1748242122714,0.0267851,109430.0,109410.0,0.36671932]
[1748242122929,0.0168,109430.0,109420.0,0.36900383]
[1748242123152,0.03862876,109450.0,109420.0,2.6048032]
[1748242123153,0.0168,109440.0,109420.0,2.6048032]
[1748242123351,0.05897295,109450.0,109430.0,0.8229842]
[1748242123557,0.04902935,109450.0,109440.0,0.36671932]
[1748242123780,0.04902935,109450.0,109440.0,0.94853032]
[1748242124001,0.04902935,109450.0,109440.0,0.83916432]
[1748242124202,0.04916575,109450.0,109440.0,0.53775432]
[1748242124637,0.04916575,109450.0,109440.0,0.36671932]
[1748242125111,0.06656575,109450.0,109440.0,0.51514632]
[1748242126361,0.06656575,109450.0,109440.0,0.88186564]
[1748242126500,0.06656575,109450.0,109440.0,0.51514632]
[1748242127368,0.06656575,109450.0,109440.0,0.52860617]
[1748242127756,0.06656575,109450.0,109440.0,0.69141861]
[1748242127941,0.06656575,109450.0,109440.0,0.74689849]
[1748242128141,0.06656575,109450.0,109440.0,1.34685549]
[1748242128349,0.06656575,109450.0,109440.0,1.01611049]
[1748242129927,0.06056575,109450.0,109440.0,1.01611049]
[1748242130080,0.0343364,109450.0,109440.0,1.01611049]
[1748242130680,0.0343364,109450.0,109440.0,0.96228349]
[1748242134795,0.0001364,109450.0,109440.0,0.96228349]
[1748242135114,0.0187364,109450.0,109440.0,0.97431513]
[1748242135323,0.0376364,109450.0,109440.0,0.97431513]
[1748242136564,0.0376364,109450.0,109440.0,1.12559513]
[1748242136948,0.0376364,109450.0,109440.0,0.75887581]
[1748242137554,0.0316364,109450.0,109440.0,0.75887581]
[1748242137872,0.0316364,109450.0,109440.0,1.12559513]
[1748242145196,0.0256364,109450.0,109440.0,1.12559513]
[1748242146604,0.0189,109450.0,109440.0,1.12559513]
[1748242148445,0.0369,109450.0,109440.0,1.12559513]
[1748242150957,0.0369,109450.0,109440.0,0.75887581]
[1748242152946,0.0309,109450.0,109440.0,0.75887581]
[1748242153168,0.0309,109450.0,109440.0,1.12559513]
[1748242154459,0.40066502,109470.0,109440.0,1.12559513]
[1748242154652,0.0193,109460.0,109450.0,0.36671932]
[1748242156003,0.0383,109460.0,109450.0,0.36671932]
[1748242156310,0.03726,109460.0,109450.0,0.36671932]
[1748242156469,0.03826,109460.0,109450.0,0.36671932]
[1748242156669,0.03826,109460.0,109440.0,0.54349081]
[1748242156894,0.0177,109450.0,109440.0,0.54349081]
[1748242157094,0.0177,109450.0,109440.0,1.68707881]
[1748242158164,0.0177,109450.0,109440.0,2.05379813]
[1748242158392,0.0192,109460.0,109440.0,2.04079813]
[1748242158605,0.0192,109460.0,109450.0,0.36671932]
[1748242159121,0.0371,109460.0,109450.0,0.36671932]
[1748242160664,0.0311,109460.0,109450.0,0.36671932]
[1748242161562,0.0321,109460.0,109450.0,0.36671932]
[1748242161865,0.0331,109460.0,109450.0,0.36671932]
[1748242164142,0.0331,109460.0,109440.0,0.54349081]
[1748242165141,0.0311,109460.0,109440.0,0.54349081]
[1748242168477,0.0251,109460.0,109440.0,0.54349081]
[1748242168635,0.0251,109460.0,109440.0,0.56269081]
[1748242169479,0.0251,109460.0,109450.0,0.36671932]
[1748242169677,0.0522457,109470.0,109450.0,1.15207232]
[1748242169881,0.0183,109470.0,109460.0,1.76662364]
[1748242170138,0.024,109480.0,109460.0,1.76662364]
[1748242170483,0.0423,109480.0,109470.0,0.36671932]
[1748242170891,0.04234971,109480.0,109470.0,0.36671932]
[1748242171453,0.06074971,109480.0,109470.0,0.36671932]
[1748242171624,0.06074971,109480.0,109470.0,0.36871932]
[1748242172422,0.06074971,109480.0,109470.0,0.37071932]
[1748242175183,0.06074971,109480.0,109470.0,0.004]
[1748242176015,0.05474971,109480.0,109470.0,0.004]
[1748242177054,0.05474971,109480.0,109470.0,0.37071932]
[1748242181211,0.51101459,109480.0,109470.0,0.004]